[Event "European Women Blitz-ch 2024"]
[Site "Monaco"]
[Date "2025.01.10"]
[Round "8.10"]
[White "Papp, Petra"]
[Black "Shvedova, Alexandra"]
[Result "1-0"]
[Annotator "TA"]
[ECO "D02"]
[WhiteElo "2235"]
[BlackElo "2266"]
[PlyCount "77"]
[EventDate "2025.01.06"]
[EventType "swiss"]
[EventCountry "MNC"]
[SourceTitle "playchess.com"]
[Source "ChessBase"]
[SourceQuality "1"]
[TimeControl "180+2"]

{[%evp 9,77,6,24,0,23,31,26,27,23,29,23,25,41,26,45,31,58,20,6,-72,-62,-254,-256,-259,-248,-400,-4,-339,-333,-308,-271,-260,-98,-149,245,250,504,-391,-422,-502,-471,-537,-240,-666,-661,-698,-260,-226,-254,-395,-44,-308,-295,-295,-276,-792,-797,-795,-748,-724,0,0,0,0,1950,1822,29982,29983,29983,29983]} 1. d4 {[%emt 0:00:02]} Nf6 {[%emt 0:00:01]} 2. Nf3 {[%emt 0:00:01]} d5 {[%emt 0:00:01]} 3. Bf4 {[%emt 0:00:01]} e6 {[%emt 0:00:02]} 4. e3 {[%emt 0:00:02]} c5 {[%emt 0:00:01]} 5. Nbd2 {[%emt 0:00:04]} Bd6 {[%emt 0:00:03]} 6. c3 {[%emt 0:00:06]} Qc7 {[%emt 0:00:04]} 7. Bxd6 {[%emt 0:00:05]} Qxd6 {[%emt 0:00:02]} 8. Ne5 {[%emt 0:00:01]} O-O {[%emt 0:00:15]} 9. Bd3 {[%emt 0:00:04]} Nc6 {[%emt 0:00:11]} 10. f4 {[%emt 0:00:02]} Rb8 {[%emt 0:00:06]} 11. Qf3 {[%emt 0:00:18]} b5 {[%emt 0:00:08]} 12. Qh3 {[%emt 0:00:18]} g6 {[%emt 0:00:52]} 13. g4 {[%emt 0:00:14]} (13. O-O {simplifies} Nd7 14. Ndf3 Ncxe5 15. fxe5 Qe7 16. a3) 13... b4 {[%emt 0:00:06]} 14. g5 {[%emt 0:00:16]} (14. O-O $11) 14... Ne8 $17 {[%emt 0:00:28]} 15. Qh6 $2 {[%emt 0:00:46]} (15. dxc5 $15 Qxc5 16. Nb3) 15... bxc3 $19 {[%emt 0:00:15]} 16. bxc3 {[%emt 0:00:01] h4 would now be deadly.} cxd4 $1 {[%emt 0:00:01]} 17. cxd4 $2 {[%emt 0:00:09]} (17. exd4 Nxe5 18. fxe5) 17... Nb4 $2 {[%emt 0:00:04]} (17... Nxe5 $1 $19 18. dxe5 Qa3) 18. Be2 $2 {[%emt 0:00:14][%mdl 8192]} (18. O-O $11 {and White stays safe.}) 18... Nc2+ {[%emt 0:00:05]} 19. Kf2 {[%emt 0:00:01]} Nxa1 {[%emt 0:00:03]} 20. Rxa1 {[%emt 0:00:00]} f6 $2 {[%emt 0:00:07]} (20... Rb2 $19 21. Rd1 Bd7 (21... Rxa2 $2 22. h4 $19)) 21. Nxg6 {[%emt 0:00:10]} ({White should play} 21. gxf6 Rxf6 (21... Nxf6 22. Rg1 $11) 22. Rc1) 21... hxg6 $2 {[%emt 0:00:01][%mdl 8192]} (21... Rf7 $1 $17 {keeps the pressure on. ...Rb2 is the strong threat.} 22. Nh4 fxg5) 22. Qxg6+ $18 {[%emt 0:00:00]} Kh8 $2 {[%emt 0:00:03]} (22... Ng7 {was worth a try.}) 23. Rg1 $4 {[%emt 0:00:07][%mdl 8192]} (23. Qh5+ $18 {is the narrow road to win.} Kg8 24. gxf6 Rxf6 25. Qxe8+ Qf8 26. Rg1+ Kh7 27. Qh5+ Qh6 28. Qe5 (28. Bd3+ Kh8 $18)) 23... Rb7 $19 {[%emt 0:00:11]} 24. gxf6 {[%emt 0:00:04]} Nxf6 {[%emt 0:00:02]} 25. Bd3 {[%emt 0:00:03]} Rff7 {[%emt 0:00:17]} (25... Rh7 $142 26. Qg5 Rxh2+ 27. Rg2 Rxg2+ 28. Kxg2 Rg8) 26. Rg5 $2 {[%emt 0:00:18]} (26. Qh6+ Nh7 27. Qh5) 26... Qf8 {[%emt 0:00:02]} 27. Nf3 {[%emt 0:00:10] [#]} Ne4+ $2 {[%emt 0:00:09]} 28. Bxe4 {[%emt 0:00:03]} dxe4 {[%emt 0:00:01]} 29. Ne5 {[%emt 0:00:03] [#]} (29. Qxe4 $142 Rb2+ 30. Kg3) 29... Rh7 $2 {[%emt 0:00:03]} (29... Rxf4+ $1 $19 30. Kg3 (30. exf4 Qxf4+ 31. Kg1 Rb1+ 32. Kg2 Rb2+ 33. Kh3 Rxh2#) 30... Rf3+ 31. Kg4 Qf5+ (31... Rxe3 32. Rh5+) (31... Rh7 $2 32. Qxe4 $19) 32. Rxf5 exf5+ 33. Kh4 Rh7+ 34. Kg5 Rg7) 30. Rh5 $2 {[%emt 0:00:11][%mdl 8192]} (30. Qxe4 $15 Qh6 (30... Rxh2+ $2 31. Kf3 $19) 31. Ng6+ Kg8 32. h4 (32. Ne7+ $2 Kf7 $19)) 30... Rxh5 {[%emt 0:00:06]} 31. Qxh5+ {[%emt 0:00:02]} Kg8 {[%emt 0:00:01]} 32. Ng6 $2 {[%emt 0:00:01]} (32. Ng4) 32... Qg7 {[%emt 0:00:03]} 33. Qg5 {[%emt 0:00:03]} Rb2+ {[%emt 0:00:05]} 34. Ke1 {[%emt 0:00:02]} Rb7 $2 {[%emt 0:00:03]} (34... Rxa2 $2 35. Qd8+ Kh7 36. Nf8+ $18) (34... Kh7 $19 35. Ne7 Qxg5 36. fxg5 Bd7) 35. Qd8+ {[%emt 0:00:03]} Kh7 {[%emt 0:00:02]} 36. Nf8+ {[%emt 0:00:01]} Kg8 $2 {[%emt 0:00:05][%mdl 8192]} (36... Kh8 $11 37. Nxe6+ Qg8 38. Qh4+ Rh7 39. Qf6+ Rg7 40. Qh4+ (40. Qxg7+ $2 Qxg7 41. Nxg7 Kxg7 $17) 40... Qh7 41. Qd8+ Qg8 42. Qh4+) 37. Nxe6+ $18 {[%emt 0:00:01]} (37. Qxc8 {gets mated.} Rb1+ (37... Qxf8 $2 {perishes.} 38. Qxb7 Qa3 39. Qxe4 $18) 38. Kd2 Qg2+ (38... Qxf8 39. Qxe6+ Qf7 40. Qg4+ Kf8 41. Qc8+ Kg7 42. Qg4+ Qg6 43. Qd7+ Kf6 44. Qc6+ Kf5 45. Qc8+ Qe6 46. Qc5+ Kg6 47. Qg5+ Kf7 48. Qh5+ Ke7 49. Qh7+ Kd6 50. Qxa7 $19) 39. Kc3 Qb2+ 40. Kc4 Qc2#) 37... Kh7 {[%emt 0:00:01]} 38. Nxg7 {[%emt 0:00:02]} Kxg7 {[%emt 0:00:02]} 39. Qxc8 {[%emt 0:00:00]} 1-0

[Event "European Women Blitz-ch 2024"]
[Site "Monaco"]
[Date "2025.01.10"]
[Round "8.11"]
[White "Cramling Bellon, Anna"]
[Black "Cramling, Pia"]
[Result "1/2-1/2"]
[Annotator "TA"]
[ECO "D28"]
[WhiteElo "2052"]
[BlackElo "2416"]
[PlyCount "61"]
[EventDate "2025.01.06"]
[EventType "swiss"]
[EventCountry "MNC"]
[SourceTitle "playchess.com"]
[Source "ChessBase"]
[SourceQuality "1"]
[TimeControl "180+2"]

{[%evp 17,61,12,14,0,0,3,18,9,14,12,13,17,7,-59,0,-2,16,-13,0,-8,48,0,6,0,6,20,0,0,40,0,0,0,110,-58,0,-19,20,0,26,0,21,-158,-69,-210,-198,-272]} 1. d4 {[%emt 0:00:05]} d5 {[%emt 0:00:04]} 2. c4 {[%emt 0:00:01]} dxc4 {[%emt 0:00:07]} 3. e3 {[%emt 0:00:02]} Nf6 {[%emt 0:00:03]} 4. Bxc4 {[%emt 0:00:02]} e6 {[%emt 0:00:01]} 5. Nf3 {[%emt 0:00:01]} a6 {[%emt 0:00:03]} 6. O-O {[%emt 0:00:03]} c5 {[%emt 0:00:01]} 7. Qe2 {[%emt 0:00:05]} b5 {[%emt 0:00:08]} 8. Bd3 {[%emt 0:00:09]} Nbd7 {[%emt 0:00:06]} 9. Rd1 {[%emt 0:00:04]} Bb7 {[%emt 0:00:04]} 10. e4 {[%emt 0:00:09]} cxd4 {[%emt 0:00:03]} 11. Nxd4 {[%emt 0:00:06] e5 poses a challenge} Bc5 {[%emt 0:00:16]} 12. Nb3 {[%emt 0:00:07]} Bd6 {[%emt 0:00:18] [#]} 13. Bxb5 $1 {[%emt 0:00:26]} Bxh2+ {[%emt 0:00:05]} (13... Nxe4 14. Ba4) 14. Kxh2 {[%emt 0:00:02]} axb5 {[%emt 0:00:00]} 15. e5 {[%emt 0:00:07] Active counter play!} (15. f3 $11) 15... Qc7 {[%emt 0:00:21]} (15... Nd5 $15) 16. f4 $1 $132 {[%emt 0:00:09][%mdl 2048] White is not keeping still} Nd5 {[%emt 0:00:01]} 17. Nd4 {[%emt 0:00:13]} Ba6 {[%emt 0:00:02]} 18. Qg4 {[%emt 0:00:10]} g6 {[%emt 0:00:12]} (18... O-O $11) 19. Nc3 {[%emt 0:00:33]} Nxc3 {[%emt 0:00:03]} 20. bxc3 {[%emt 0:00:01][%cal Od4e6]} O-O $1 {[%emt 0:00:06] Black is weak on the dark squares} 21. Ba3 {[%emt 0:00:07]} Rfe8 {[%emt 0:00:01]} 22. Bb4 {[%emt 0:00:11]} Nb6 {[%emt 0:00:08]} 23. Rac1 {[%emt 0:00:25]} Nd5 {[%emt 0:00:10]} 24. Qh4 {[%emt 0:00:21]} f5 {[%emt 0:00:21]} (24... Qc4 $11) 25. Nf3 $2 {[%emt 0:00:06]} ({White should try} 25. Nxe6 $16 Rxe6 26. Rxd5) 25... Rad8 {[%emt 0:00:09]} (25... Bb7 $15 26. a3 Ne3) 26. Bd6 {[%emt 0:00:05]} Qg7 {[%emt 0:00:06]} 27. Nd4 {[%emt 0:00:02][%cal Od4e6] Black must now prevent Nxe6!.} (27. Rxd5 $5 exd5 28. Nd4 $11) 27... Rd7 {[%emt 0:00:07]} 28. a4 {[%emt 0:00:03]} bxa4 {[%emt 0:00:06] aiming for ...Ne3.} 29. Ra1 $2 {[%emt 0:00:00]} (29. Nxe6 $1 $11 Rxe6 30. Rxd5) 29... Ne3 {[%emt 0:00:04]} ({Better is} 29... Nxc3 $17 30. Rdc1 Ne4 (30... Rxd6 31. exd6 Qxd4 32. Rxc3 $14) 31. Rxa4 Bb7) 30. Rdc1 {[%emt 0:00:03]} (30. Re1 $15 Ng4+ 31. Kg1) 30... Bb7 $19 {[%emt 0:00:02]} 31. Rxa4 {[%emt 0:00:02]} (31. Ra2 $142) 1/2-1/2

[Event "European Women Blitz-ch 2024"]
[Site "Monaco"]
[Date "2025.01.10"]
[Round "8.12"]
[White "Rudzinska, Michalina"]
[Black "Kanyamarala, Trisha"]
[Result "1-0"]
[Annotator "TA"]
[ECO "B56"]
[WhiteElo "2226"]
[BlackElo "2158"]
[PlyCount "49"]
[EventDate "2025.01.06"]
[EventType "swiss"]
[EventCountry "MNC"]
[SourceTitle "playchess.com"]
[Source "ChessBase"]
[SourceQuality "1"]
[TimeControl "180+2"]

{[%evp 12,49,14,18,41,34,25,28,35,54,47,49,66,71,68,68,52,59,62,62,58,58,104,101,93,19,21,22,29,0,0,-135,154,150,325,313,387,394,726,717]} 1. e4 {[%emt 0:00:01]} c5 {[%emt 0:00:00]} 2. Nf3 {[%emt 0:00:01][%cal Bg1f3,Bf3d4,Bd4b3,Bb3d2,Bd2c4][%mdl 32]} d6 {[%emt 0:00:01]} 3. d4 {[%emt 0:00:01]} cxd4 {[%emt 0:00:01]} 4. Nxd4 {[%emt 0:00:01]} Nf6 {[%emt 0:00:01]} 5. Nc3 {[%emt 0:00:01]} Nc6 {[%emt 0:00:01]} 6. f3 {[%emt 0:00:04]} e5 {[%emt 0:00:04]} 7. Nb3 {[%emt 0:00:01]} a5 {[%emt 0:00:02][%cal Ba7a5,Ba5a4][%mdl 32]} 8. Be3 {[%emt 0:00:10]} a4 {[%emt 0:00:03]} 9. Nd2 {[%emt 0:00:02]} a3 {[%emt 0:00:39]} 10. Nc4 {[%emt 0:00:03]} axb2 {[%emt 0:00:10]} 11. Rb1 {[%emt 0:00:01][%cal Oe3b6]} Be7 {[%emt 0:00:32]} 12. Rxb2 {[%emt 0:00:35]} O-O {[%emt 0:00:14]} 13. Bb6 {[%emt 0:00:01]} Qd7 {[%emt 0:00:15]} 14. Be2 {[%emt 0:00:06]} Nd4 {[%emt 0:00:58]} 15. Bxd4 {[%emt 0:00:05]} exd4 {[%emt 0:00:01]} 16. Qxd4 {[%emt 0:00:06] Nb6 would now be deadly.} Qd8 {[%emt 0:00:22]} (16... Qc7 $14 {might be stronger.}) 17. O-O $16 {[%emt 0:00:20] White is much more active.} Be6 {[%emt 0:00:01]} 18. Rxb7 {[%emt 0:00:12]} (18. Rb5 $16) 18... d5 $11 {[%emt 0:00:02]} 19. Nb6 {[%emt 0:00:14]} Ra5 {[%emt 0:00:09] aiming for ...Bc5.} 20. Nb5 {[%emt 0:00:41]} (20. Nba4 $5) 20... dxe4 {[%emt 0:00:00]} 21. Qc3 {[%emt 0:00:07]} (21. fxe4 $2 Qxd4+ 22. Nxd4 Bc5 $19) (21. a4 $11) 21... Ra6 $2 {[%emt 0:00:04][%mdl 8192]} ({And not} 21... Rxa2 22. Rd1 Nd5 23. Nxd5 (23. fxe4 $2 {is the wrong capture.} Nxc3 24. Nxc3 Bc5+ 25. Kh1 Rxc2 $19) (23. Rxd5 Bxd5 24. Nxd5 Qxd5 $16) 23... Bxd5 24. Rxd5 (24. Rxe7 Qxe7 25. Rxd5 exf3 $16) 24... Qxd5 25. Rxe7 $16) (21... exf3 $1 $17 {stays on course.} 22. Rxf3 Rxb5 (22... Rxa2 23. Rd3 $17) 23. Bxb5 Ne4) 22. Rd1 $36 {[%emt 0:00:06][%mdl 2048] White is on the roll.} Qe8 $2 {[%emt 0:00:02]} (22... Rxb6 $16 23. Rxd8 Bxd8) 23. Nc7 $1 $18 {[%emt 0:00:03][%csl LRa6,LRe8]} Rxb6 {[%emt 0:00:03]} 24. Rxb6 {[%emt 0:00:12]} Qc8 $2 {[%emt 0:00:01]} (24... Qa4 25. Ra6 Bb4) 25. Ba6 {[%emt 0:00:08]} 1-0

[Event "European Women Blitz-ch 2024"]
[Site "Monaco"]
[Date "2025.01.10"]
[Round "8.13"]
[White "Maisuradze, Nino"]
[Black "Stefanova, Antoaneta"]
[Result "0-1"]
[Annotator "TA"]
[ECO "D10"]
[WhiteElo "2174"]
[BlackElo "2418"]
[PlyCount "96"]
[EventDate "2025.01.06"]
[EventType "swiss"]
[EventCountry "MNC"]
[SourceTitle "playchess.com"]
[Source "ChessBase"]
[SourceQuality "1"]
[TimeControl "180+2"]

{[%evp 18,96,20,24,36,36,23,0,0,0,0,-22,-10,-32,-21,-97,-42,-202,-202,-304,-295,-366,-348,-334,-333,-500,-487,-589,-576,-581,-536,-552,-537,-685,-705,-706,-700,-746,-734,-735,-778,-787,-780,-815,-810,-839,-833,-807,-721,-953,-917,-1029,-1005,-941,-791,-993,-700,-680,-718,-715,-731,-720,-713,-812,-839,-887,-845,-869,-713,-845,-845,-800,-765,-752,-751,-7436,-1085,-29975,-29975,-29981,-29982]} 1. d4 {[%emt 0:00:02]} d5 {[%emt 0:00:01]} 2. c4 {[%emt 0:00:00]} c6 {[%emt 0:00:00]} 3. Nc3 {[%emt 0:00:05]} Nf6 {[%emt 0:00:02]} 4. cxd5 {[%emt 0:00:02]} cxd5 {[%emt 0:00:02]} 5. Bf4 {[%emt 0:00:00]} a6 {[%emt 0:00:05]} 6. e3 {[%emt 0:00:01]} Nc6 {[%emt 0:00:04]} 7. Bd3 {[%emt 0:00:02]} Bg4 {[%emt 0:00:02]} 8. Nge2 {[%emt 0:00:10]} e6 {[%emt 0:00:05]} 9. O-O {[%emt 0:00:10]} Be7 {[%emt 0:00:04]} 10. Rc1 {[%emt 0:00:24]} O-O {[%emt 0:00:08]} 11. f3 {[%emt 0:00:01]} Bh5 {[%emt 0:00:02]} 12. g4 {[%emt 0:00:05]} Bg6 {[%emt 0:00:01]} 13. Bxg6 {[%emt 0:00:06]} hxg6 {[%emt 0:00:02]} 14. Kg2 {[%emt 0:00:06]} Rc8 {[%emt 0:00:05]} 15. Qe1 {[%emt 0:00:13]} Nd7 {[%emt 0:00:09][%cal Bf6d7,Bd7b6,Bb6c4,Bc4a3,Ba3c2][%mdl 32]} 16. a3 {[%emt 0:00:09]} (16. Bg3 $11 {remains equal.}) 16... b5 {[%emt 0:00:15]} (16... Nb6 $17 17. Rh1 Nc4) 17. b4 $2 {[%emt 0:00:07]} (17. Bg3 $15) 17... Nb6 $19 {[%emt 0:00:16]} 18. g5 {[%emt 0:00:14]} (18. Ra1 $142) 18... Bxg5 {[%emt 0:00:06]} 19. Qg3 {[%emt 0:00:02]} Bxf4 {[%emt 0:00:13]} 20. Nxf4 {[%emt 0:00:02]} Nc4 {[%emt 0:00:02][%csl LRa3,LRe3]} 21. Rce1 {[%emt 0:00:23]} (21. Qf2 $142) 21... Nxa3 {[%emt 0:00:18][%cal Oa3c2]} 22. Nh3 {[%emt 0:00:14]} Ne7 {[%emt 0:00:18]} 23. Nd1 {[%emt 0:00:20]} Nf5 {[%emt 0:00:08]} 24. Qg4 {[%emt 0:00:26]} Qh4 {[%emt 0:00:04]} 25. Rf2 {[%emt 0:00:21]} Nc2 {[%emt 0:00:11]} 26. Ree2 {[%emt 0:00:03]} Nxb4 {[%emt 0:00:01]} 27. e4 {[%emt 0:00:04]} Qxg4+ {[%emt 0:00:07]} 28. fxg4 {[%emt 0:00:01]} Nxd4 {[%emt 0:00:03]} 29. Rd2 {[%emt 0:00:03]} e5 {[%emt 0:00:04]} 30. exd5 {[%emt 0:00:01]} Nxd5 {[%emt 0:00:02]} 31. Ng5 {[%emt 0:00:03]} Rc1 {[%emt 0:00:06][%cal Oc1d1] White must now prevent ...Rxd1!.} 32. Kg3 {[%emt 0:00:01]} f6 {[%emt 0:00:05]} 33. Ne4 {[%emt 0:00:02]} g5 {[%emt 0:00:08]} 34. h4 {[%emt 0:00:01]} gxh4+ {[%emt 0:00:02]} 35. Kxh4 {[%emt 0:00:00]} Rfc8 {[%emt 0:00:08]} 36. Kh5 {[%emt 0:00:02]} R1c4 {[%emt 0:00:13]} 37. Nd6 {[%emt 0:00:02]} R4c6 {[%emt 0:00:09]} 38. Nxc8 {[%emt 0:00:01]} Rxc8 {[%emt 0:00:01]} 39. g5 {[%emt 0:00:03]} Kf7 {[%emt 0:00:03]} 40. gxf6 {[%emt 0:00:03]} gxf6 {[%emt 0:00:01]} 41. Nb2 {[%emt 0:00:03]} Rh8+ {[%emt 0:00:06]} 42. Kg4 {[%emt 0:00:01]} Ne3+ {[%emt 0:00:02]} 43. Kg3 {[%emt 0:00:01]} Rg8+ {[%emt 0:00:02]} 44. Kh3 {[%emt 0:00:01]} Ne6 {[%emt 0:00:03]} 45. Nd3 {[%emt 0:00:04] Wards off Nf4+} Ng5+ {[%emt 0:00:02]} 46. Kh2 {[%emt 0:00:01]} Ng4+ {[%emt 0:00:01]} (46... Rh8+ $142 47. Kg1 Nh3+ 48. Kh2 Nxf2+ 49. Kg1 Nh3+ 50. Kh1 Ng5+ 51. Rh2 Rxh2+ 52. Kxh2 e4) 47. Kg2 {[%emt 0:00:00]} Nxf2 {[%emt 0:00:02]} 48. Kxf2 {[%emt 0:00:01]} Ne4+ {[%emt 0:00:00]} 0-1

[Event "European Women Blitz-ch 2024"]
[Site "Monaco"]
[Date "2025.01.10"]
[Round "8.14"]
[White "Narva, Mai"]
[Black "Schulze, Lara"]
[Result "1-0"]
[Annotator "TA"]
[ECO "C60"]
[WhiteElo "2398"]
[BlackElo "2266"]
[PlyCount "115"]
[EventDate "2025.01.06"]
[EventType "swiss"]
[EventCountry "MNC"]
[SourceTitle "playchess.com"]
[Source "ChessBase"]
[SourceQuality "1"]
[TimeControl "180+2"]

{[%evp 18,115,22,28,32,37,27,27,29,34,64,8,12,-86,-96,-86,-85,-82,-88,-99,-61,-122,-111,-179,-139,-151,-154,-164,-78,-210,-208,-222,-220,-209,-181,-197,-191,-281,-277,-266,-266,-352,-264,-267,-240,-413,-426,-426,-426,-731,-750,-760,-750,-658,-96,-125,0,-201,-171,-198,-200,-821,0,0,0,15,428,422,350,27,5213,532,5206,283,276,242,247,245,29985,29986,29982,29968,5177,139,145,147,186,0,756,692,29988,29989,29991,29990,29992,29993,29995,29993,29998,29999]} 1. e4 {[%emt 0:00:01]} e5 {[%emt 0:00:02]} 2. Nf3 {[%emt 0:00:01]} Nc6 {[%emt 0:00:00]} 3. Bb5 {[%emt 0:00:02]} a6 {[%emt 0:00:01]} 4. Ba4 {[%emt 0:00:01]} Nf6 {[%emt 0:00:01]} 5. O-O {[%emt 0:00:02]} d6 {[%emt 0:00:01]} 6. c3 {[%emt 0:00:28]} Bd7 {[%emt 0:00:02]} 7. Re1 {[%emt 0:00:06]} g6 {[%emt 0:00:01]} 8. h3 {[%emt 0:00:08]} Bg7 {[%emt 0:00:01]} 9. d4 {[%emt 0:00:04]} O-O {[%emt 0:00:03]} 10. Nbd2 {[%emt 0:00:04]} exd4 {[%emt 0:00:08]} 11. cxd4 {[%emt 0:00:03]} Nb4 {[%emt 0:00:02]} 12. Bxd7 {[%emt 0:00:11]} Qxd7 {[%emt 0:00:02]} 13. Qb3 {[%emt 0:00:32] Repels Nd3} c5 {[%emt 0:00:20]} 14. d5 {[%emt 0:00:09]} (14. Nc4 $14) 14... a5 $1 $11 {[%emt 0:00:12]} 15. a3 {[%emt 0:00:09]} (15. Nc4 $1 $11 {was the only way to keep the balance.}) 15... a4 $17 {[%emt 0:00:12]} 16. Qd1 {[%emt 0:00:24]} Nd3 {[%emt 0:00:02]} 17. Re3 {[%emt 0:00:01]} Nxc1 {[%emt 0:00:10]} 18. Rxc1 {[%emt 0:00:02]} b5 {[%emt 0:00:06]} 19. Re1 {[%emt 0:00:07]} (19. e5 $1 $15 Nxd5 20. Rd3) 19... Nh5 {[%emt 0:00:08]} 20. Qc2 {[%emt 0:00:05]} (20. e5 $17 {was called for.}) 20... Nf4 {[%emt 0:00:04]} 21. g3 {[%emt 0:00:26]} Nxh3+ {[%emt 0:00:14]} 22. Kg2 {[%emt 0:00:01]} h6 {[%emt 0:00:11]} (22... Qg4 23. Nh2 Qh5 (23... Nf4+ 24. Kh1 $16) 24. f4 $17) (22... f6 $19 {and Black stays clearly on top.} 23. Rh1 Ng5) 23. Nf1 {[%emt 0:00:08]} (23. e5 $17 dxe5 24. Qxc5) 23... Ng5 $19 {[%emt 0:00:07]} 24. Nxg5 {[%emt 0:00:04]} hxg5 {[%emt 0:00:01]} 25. Qd2 {[%emt 0:00:04]} Bf6 {[%emt 0:00:13]} 26. Ne3 {[%emt 0:00:03]} Kg7 {[%emt 0:00:04]} 27. Qe2 {[%emt 0:00:05]} (27. f3 $142) 27... Rh8 {[%emt 0:00:07]} 28. Rh1 {[%emt 0:00:05]} Bd4 {[%emt 0:00:09]} 29. Ng4 {[%emt 0:00:07]} Rae8 {[%emt 0:00:02]} 30. Rxh8 {[%emt 0:00:03]} Rxh8 {[%emt 0:00:01]} 31. Rh1 $2 {[%emt 0:00:03]} (31. Re1) 31... Rxh1 {[%emt 0:00:03]} 32. Kxh1 {[%emt 0:00:01][%mdl 4096] Endgame KQB-KQN. Black is a pawn up.} Qe7 {[%emt 0:00:09]} 33. Nh2 {[%emt 0:00:10]} (33. e5 $142 Bxe5 (33... dxe5 34. Qxb5 f5 35. Ne3 $19) 34. Nxe5) 33... f5 {[%emt 0:00:15]} 34. f3 {[%emt 0:00:02]} Qe5 {[%emt 0:00:05][%csl LRb2,LRg3]} 35. Kg2 {[%emt 0:00:01]} Bxb2 $2 {[%emt 0:00:05]} (35... c4 $19 36. Qe1 g4 (36... Bxb2 $2 37. Qa5 $19)) 36. Qxb5 $17 {[%emt 0:00:02]} fxe4 {[%emt 0:00:03]} (36... Bxa3 $17 {aiming for ...Qb2+.} 37. Qxa4 Bb4) 37. Qd7+ $2 {[%emt 0:00:02]} (37. Qb7+ $11 {and White has nothing to worry.} Kg8 38. Qc8+ Kh7 39. Qd7+ Qg7 40. Qxd6) 37... Kf8 $19 {[%emt 0:00:12]} 38. Qd8+ {[%emt 0:00:02]} Kf7 $1 {[%emt 0:00:03]} 39. Ng4 $2 {[%emt 0:00:07]} (39. Qd7+ Qe7 40. Qxa4) 39... Qc3 $2 {[%emt 0:00:06]} (39... Qxd5 40. Qc7+ Ke8 (40... Ke6 41. Qc8+ Ke7 42. Qc7+ Ke6 43. Qc8+ Ke7 44. Qc7+ Ke6 $11) 41. Qb8+ Kd7 42. Qxb2 exf3+ 43. Kf2 $14) ({Black should try} 39... exf3+ $19 40. Kxf3 Qxd5+ 41. Kf2 Qf5+ (41... Bxa3 42. Qd7+ Kf8 43. Qd8+ Kf7 44. Qd7+ Kf8 45. Qd8+ Kg7 46. Qf6+ Kg8 47. Qd8+ Kf7 $11) 42. Kg2 Qxg4 43. Qc7+ Kf6 44. Qxd6+ Kg7 (44... Qe6 $2 45. Qf8+ Qf7 46. Qh8+ Qg7 47. Qd8+ Ke6 48. Qc8+ Qd7 49. Qg8+ Ke7 50. Qh7+ Kd8 51. Qxg6 $19) 45. Qxc5 Qe4+ 46. Kh2 Be5 (46... Qe2+ $2 47. Kg1 $19) 47. Qa7+ Kh6) 40. Qd7+ $11 {[%emt 0:00:02]} Kf8 {[%emt 0:00:02]} 41. Qxd6+ {[%emt 0:00:02]} Kg7 $2 {[%emt 0:00:06][%mdl 8192] [#]} (41... Kf7 $1 $11 {and Black is okay.} 42. Qe6+ (42. fxe4 Qc2+ 43. Kh3 Qb1 $11) 42... Kf8 43. Qxe4 (43. Qxg6 $2 exf3+ 44. Kh3 Qh8+ 45. Nh6 Qf6 $19) 43... Ba1) 42. Qe7+ $1 $18 {[%emt 0:00:01]} (42. fxe4 Qc2+ 43. Kh3 (43. Nf2 g4 $11) 43... Qc1 $11) 42... Kh8 {[%emt 0:00:04]} 43. Qxe4 $2 {[%emt 0:00:01]} (43. Qxg5 Qxf3+ (43... Qxa3 44. Qh6+ Kg8 45. Qxg6+ Kf8 46. Qf5+ Kg7 47. Qg5+ Kf8 48. Qf4+ Kg7 49. fxe4 $18) 44. Kh2 Qe2+ (44... Qxa3 45. Qh6+ Kg8 46. Qxg6+ Kf8 47. Qd6+ Kg8 48. Qe6+ Kg7 49. Qe7+ Kg6 50. Qxe4+ Kg5 51. Qf4+ Kg6 52. Qh6+ Kf7 53. Qe6+ Kg7 54. Qe7+ Kg6 55. d6 $18) 45. Kh3 Qf1+ (45... Bxa3 46. Qd8+ Kh7 47. Qe7+ Kh8 48. Qf8+ Kh7 49. Nf6#) 46. Kh2 Qf5 47. Qh4+ Kg7 (47... Qh5 48. d6 $14) 48. Qe7+ Kh8 $11) (43. Qf8+ $18 Kh7 44. Qh6+ (44. fxe4 Qc2+ 45. Nf2 Bd4 $11) 44... Kg8 45. Qxg6+ (45. fxe4 Qc2+ 46. Nf2 Kf7 $14) 45... Kf8 46. Qxe4 (46. fxe4 Qe1 $18)) 43... Bxa3 $2 {[%emt 0:00:08][%mdl 8192]} (43... Qd2+ $11 44. Kh3 Qd1 45. Qe8+ (45. Qxg6 Qf1+ 46. Kh2 Qe2+ 47. Kh3 Qf1+ 48. Kh2 Qe2+ 49. Kh3 Qf1+ $11) 45... Kh7) 44. Qxg6 {[%emt 0:00:08]} (44. Qxa4 c4 $14) (44. Qe8+ $142 Kh7 45. Qd7+ (45. Qxa4 c4 $16) 45... Kg8 46. Qd8+ (46. Qxa4 c4 $16) 46... Kf7 47. d6 (47. Qxg5 Qb2+ 48. Nf2 Qd4 $14)) 44... Bb2 {[%emt 0:00:04]} 45. Nh6 $2 {[%emt 0:00:00]} (45. Qxg5 Qc2+ 46. Nf2 Bd4 47. Qh4+ Kg7 48. Qg4+ Kh6 49. Qf4+ Kg6 50. Qg4+ Kf7 51. Qf4+ Kg7 52. Qg4+ Kf8 53. Qc8+ Kg7 54. Qd7+ Kf8 55. Qc8+ Kg7 56. Qd7+ Kf6 57. Qd6+ Kg7 58. Qd7+ $11) (45. d6 {Threatening mate with Qh6+.} Qd2+ 46. Kh3) 45... Qg7 {[%emt 0:00:04]} 46. Qe8+ {[%emt 0:00:00]} Kh7 {[%emt 0:00:03]} 47. Nf5 {[%emt 0:00:00]} Qe5 $2 {[%emt 0:00:03]} (47... Qg6 $18 48. Qe7+ (48. Qxa4 Qxf5 49. Qa7+ Bg7 $17) 48... Bg7) 48. Qf7+ {[%emt 0:00:02]} (48. Qxa4 Qxf5 49. Qa7+ Bg7 50. Qxc5 Qd3 $17) 48... Kh8 {[%emt 0:00:02]} 49. Ne7 {[%emt 0:00:03][%cal Re7g6]} Qg7 {[%emt 0:00:05]} 50. Qh5+ $2 {[%emt 0:00:01]} (50. Qxg7+ $2 Kxg7 51. Nf5+ Kf7 52. Nd6+ Kf8 $19) (50. Qe8+ $18 {and the rest is easy.} Kh7 51. d6) 50... Qh7 $16 {[%emt 0:00:01]} 51. Qe8+ {[%emt 0:00:02]} ({Of course not} 51. Qxg5 $6 Qc2+ 52. Kh3 Qh7+ 53. Kg2 (53. Kg4 Qg7 $11) 53... Qc2+ 54. Kh3 Qh7+ 55. Kg2 $11) 51... Kg7 {[%emt 0:00:01][%cal Og5g4] [#]} 52. d6 $2 {[%emt 0:00:02]} (52. Qc8 $1 $18 {[%cal Rc8e6]}) 52... Qc2+ $2 {[%emt 0:00:02][%mdl 8192]} (52... g4 $11 53. fxg4 Qe4+ 54. Kh2 Qe2+ 55. Kh3 Qf1+ 56. Kh2 Qf2+ 57. Kh3 Qf1+) 53. Kh3 $18 {[%emt 0:00:01]} Qh7+ {[%emt 0:00:03]} 54. Kg4 {[%emt 0:00:02]} Kf6 {[%emt 0:00:03]} 55. Nd5+ {[%emt 0:00:04]} ({Less strong is} 55. Qxa4 Qf7 56. Qc2 Qe6+ 57. Qf5+ Qxf5+ 58. Nxf5 Ke6 $16) 55... Kg7 {[%emt 0:00:03]} 56. d7 {[%emt 0:00:02]} Qh6 {[%emt 0:00:03]} 57. Qe7+ {[%emt 0:00:02]} Kg8 {[%emt 0:00:01]} 58. d8=Q+ {[%emt 0:00:02]} 1-0